[Event "Titled Tuesday Blitz August 3 2021"]
[White "Potapova, Margarita"]
[Black "Mikhailovsky, Vladimir"]
[WhiteFideId "14126869"]
[BlackFideId "34105414"]
[WhiteElo "2588"]
[BlackElo "2750"]
[Result "0-1"]
[Round "09"]
[TimeControl "180+1"]
[Date "2021.08.03"]
[WhiteClock "0:00:10"]
[BlackClock "0:00:09"]

1. d4 {[%clk 0:03:00]}  Nf6 {[%clk 0:02:57]} 2. c4 {[%clk 0:03:01]}  c6 {[%clk 0:02:56]} 3. Nf3 {[%clk 0:03:00]}  d5 {[%clk 0:02:50]} 4. g3 {[%clk 0:03:00]}  dxc4 {[%clk 0:02:46]} 5. Bg2 {[%clk 0:02:59]}  e6 {[%clk 0:02:44]} 6. Ne5 {[%clk 0:02:58]}  Bb4+ {[%clk 0:02:41]} 7. Nc3 {[%clk 0:02:48]}  Nd5 {[%clk 0:02:38]} 8. O-O {[%clk 0:02:26]}  Nxc3 {[%clk 0:02:34]} 9. bxc3 {[%clk 0:02:26]}  Bxc3 {[%clk 0:02:35]} 10. Ba3 {[%clk 0:01:50]}  Qxd4 {[%clk 0:02:27]} 11. Nxc4 {[%clk 0:01:50]}  Bxa1 {[%clk 0:02:01]} 12. Qxd4 {[%clk 0:01:14]}  Bxd4 {[%clk 0:02:01]} 13. Rd1 {[%clk 0:01:15]}  c5 {[%clk 0:01:46]} 14. e3 {[%clk 0:01:15]}  O-O {[%clk 0:01:36]} 15. exd4 {[%clk 0:01:13]}  Rd8 {[%clk 0:01:34]} 16. Bxc5 {[%clk 0:01:12]}  Nc6 {[%clk 0:01:33]} 17. Nd6 {[%clk 0:01:09]}  Na5 {[%clk 0:00:56]} 18. d5 {[%clk 0:00:54]}  exd5 {[%clk 0:00:51]} 19. Bxd5 {[%clk 0:00:54]}  Be6 {[%clk 0:00:51]} 20. Bf3 {[%clk 0:00:48]}  b6 {[%clk 0:00:38]} 21. Bxa8 {[%clk 0:00:43]}  bxc5 {[%clk 0:00:38]} 22. Bf3 {[%clk 0:00:41]}  Kf8 {[%clk 0:00:15]} 23. a3 {[%clk 0:00:22]}  Nc4 {[%clk 0:00:10]} 24. Ne4 {[%clk 0:00:15]}  Rxd1+ {[%clk 0:00:11]} 25. Bxd1 {[%clk 0:00:16]}  Nxa3 {[%clk 0:00:10]} 26. Nxc5 {[%clk 0:00:16]}  Bd5 {[%clk 0:00:10]} 27. Kf1 {[%clk 0:00:15]}  Ke7 {[%clk 0:00:10]} 28. Ke2 {[%clk 0:00:15]}  Kd6 {[%clk 0:00:11]} 29. Na6 {[%clk 0:00:14]}  Bc4+ {[%clk 0:00:09]} 30. Ke3 {[%clk 0:00:14]}  Bxa6 {[%clk 0:00:10]} 31. Kd4 {[%clk 0:00:15]}  Nb5+ {[%clk 0:00:09]} 32. Ke3 {[%clk 0:00:13]}  Nc3 {[%clk 0:00:09]} 33. Bb3 {[%clk 0:00:14]}  f6 {[%clk 0:00:09]} 34. f4 {[%clk 0:00:14]}  Bb7 {[%clk 0:00:09]} 35. g4 {[%clk 0:00:15]}  Bd5 {[%clk 0:00:09]} 36. Bc2 {[%clk 0:00:14]}  a5 {[%clk 0:00:10]} 37. h4 {[%clk 0:00:15]}  Kc5 {[%clk 0:00:10]} 38. g5 {[%clk 0:00:12]}  fxg5 {[%clk 0:00:09]} 39. fxg5 {[%clk 0:00:12]}  g6 {[%clk 0:00:10]} 40. h5 {[%clk 0:00:12]}  Bf7 {[%clk 0:00:10]} 41. hxg6 {[%clk 0:00:12]}  hxg6 {[%clk 0:00:11]} 42. Kf4 {[%clk 0:00:12]}  Kd4 {[%clk 0:00:09]} 43. Kf3 {[%clk 0:00:10]}  a4 {[%clk 0:00:09]} 0-1


[Site "https://www.chess.com"]

[Event "Titled Tuesday Blitz August 3 2021"]
[White "Rustemov, Alexander"]
[Black "Jian, Alex"]
[WhiteFideId "4119002"]
[BlackFideId "30901022"]
[WhiteElo "2666"]
[BlackElo "2111"]
[Result "1-0"]
[Round "09"]
[TimeControl "180+1"]
[Date "2021.08.03"]
[WhiteClock "0:00:39"]
[BlackClock "0:00:01"]

1. d4 {[%clk 0:03:00]}  Nf6 {[%clk 0:02:59]} 2. c4 {[%clk 0:03:00]}  e6 {[%clk 0:03:00]} 3. Nf3 {[%clk 0:02:59]}  d5 {[%clk 0:03:00]} 4. Nc3 {[%clk 0:02:59]}  c5 {[%clk 0:03:00]} 5. cxd5 {[%clk 0:02:56]}  Nxd5 {[%clk 0:03:01]} 6. g3 {[%clk 0:02:54]}  Be7 {[%clk 0:02:58]} 7. Bg2 {[%clk 0:02:54]}  O-O {[%clk 0:02:55]} 8. O-O {[%clk 0:02:53]}  Nxc3 {[%clk 0:02:55]} 9. bxc3 {[%clk 0:02:52]}  Nc6 {[%clk 0:02:55]} 10. Be3 {[%clk 0:02:38]}  Bf6 {[%clk 0:02:43]} 11. dxc5 {[%clk 0:02:37]}  Bxc3 {[%clk 0:02:32]} 12. Rb1 {[%clk 0:02:35]}  Qa5 {[%clk 0:02:24]} 13. Qb3 {[%clk 0:02:33]}  e5 {[%clk 0:01:57]} 14. Rfc1 {[%clk 0:02:29]}  Bb4 {[%clk 0:01:57]} 15. Nxe5 {[%clk 0:02:19]}  Nxe5 {[%clk 0:01:37]} 16. Qxb4 {[%clk 0:02:19]}  Qxa2 {[%clk 0:01:33]} 17. Bxb7 {[%clk 0:01:49]}  Rb8 {[%clk 0:00:46]} 18. Rb2 {[%clk 0:01:48]}  a5 {[%clk 0:00:15]} 19. Rxa2 {[%clk 0:01:25]}  axb4 {[%clk 0:00:15]} 20. Bd5 {[%clk 0:01:15]}  Be6 {[%clk 0:00:10]} 21. Bxe6 {[%clk 0:01:12]}  fxe6 {[%clk 0:00:11]} 22. Bf4 {[%clk 0:01:05]}  Rf5 {[%clk 0:00:09]} 23. c6 {[%clk 0:00:57]}  Rc8 {[%clk 0:00:07]} 24. c7 {[%clk 0:00:50]}  g5 {[%clk 0:00:06]} 25. e4 {[%clk 0:00:48]}  Nd3 {[%clk 0:00:03]} 26. exf5 {[%clk 0:00:43]}  gxf4 {[%clk 0:00:02]} 27. Rd1 {[%clk 0:00:39]}  Nc5 {[%clk 0:00:01]} 28. Rd8+ {[%clk 0:00:39]} 1-0


[Site "https://www.chess.com"]

[Event "Titled Tuesday Blitz August 3 2021"]
[White "Sengupta, Deep"]
[Black "Chen, Max"]
[WhiteFideId "5008352"]
[BlackFideId "2622440"]
[WhiteElo "2347"]
[BlackElo "2447"]
[Result "0-1"]
[Round "09"]
[TimeControl "180+1"]
[Date "2021.08.03"]
[WhiteClock "0:00:03"]
[BlackClock "0:00:09"]

1. f4 {[%clk 0:03:00]}  e5 {[%clk 0:02:58]} 2. fxe5 {[%clk 0:02:58]}  d6 {[%clk 0:02:57]} 3. exd6 {[%clk 0:02:56]}  Bxd6 {[%clk 0:02:58]} 4. Nf3 {[%clk 0:02:56]}  g5 {[%clk 0:02:57]} 5. g3 {[%clk 0:02:56]}  g4 {[%clk 0:02:46]} 6. Nh4 {[%clk 0:02:55]}  Be7 {[%clk 0:02:40]} 7. Ng2 {[%clk 0:02:54]}  b6 {[%clk 0:02:38]} 8. d3 {[%clk 0:02:52]}  Bb7 {[%clk 0:02:32]} 9. e4 {[%clk 0:02:51]}  f5 {[%clk 0:02:27]} 10. Nc3 {[%clk 0:02:42]}  fxe4 {[%clk 0:02:20]} 11. Nxe4 {[%clk 0:02:24]}  Bxe4 {[%clk 0:02:14]} 12. dxe4 {[%clk 0:02:24]}  Qxd1+ {[%clk 0:02:14]} 13. Kxd1 {[%clk 0:02:24]}  Nf6 {[%clk 0:02:14]} 14. Bd3 {[%clk 0:02:21]}  Nc6 {[%clk 0:02:13]} 15. Bf4 {[%clk 0:02:19]}  O-O-O {[%clk 0:02:10]} 16. Ke2 {[%clk 0:02:14]}  Nd4+ {[%clk 0:02:07]} 17. Kf2 {[%clk 0:02:03]}  Rhf8 {[%clk 0:01:47]} 18. Rhd1 {[%clk 0:01:49]}  Bc5 {[%clk 0:01:45]} 19. Kf1 {[%clk 0:01:15]}  Nf3 {[%clk 0:01:32]} 20. e5 {[%clk 0:01:11]}  Nd5 {[%clk 0:00:54]} 21. Be4 {[%clk 0:00:57]}  Nxf4 {[%clk 0:00:43]} 22. Nxf4 {[%clk 0:00:56]}  Nxe5 {[%clk 0:00:38]} 23. Kg2 {[%clk 0:00:27]}  Rxd1 {[%clk 0:00:31]} 24. Rxd1 {[%clk 0:00:26]}  Nc4 {[%clk 0:00:31]} 25. Re1 {[%clk 0:00:20]}  Rd8 {[%clk 0:00:20]} 26. Re2 {[%clk 0:00:19]}  Ne3+ {[%clk 0:00:17]} 27. Kf2 {[%clk 0:00:18]}  Nxc2+ {[%clk 0:00:15]} 28. Kg2 {[%clk 0:00:18]}  Ne3+ {[%clk 0:00:15]} 29. Kf2 {[%clk 0:00:18]}  Nc4+ {[%clk 0:00:09]} 30. Kg2 {[%clk 0:00:18]}  Rd1 {[%clk 0:00:08]} 31. h3 {[%clk 0:00:16]}  Ne3+ {[%clk 0:00:08]} 32. Kh2 {[%clk 0:00:16]}  Nf1+ {[%clk 0:00:07]} 33. Kg2 {[%clk 0:00:16]}  Ne3+ {[%clk 0:00:07]} 34. Kh2 {[%clk 0:00:16]}  gxh3 {[%clk 0:00:07]} 35. Nxh3 {[%clk 0:00:16]}  Ng4+ {[%clk 0:00:07]} 36. Kg2 {[%clk 0:00:16]}  Ne3+ {[%clk 0:00:05]} 37. Kh2 {[%clk 0:00:14]}  Nf1+ {[%clk 0:00:05]} 38. Kg2 {[%clk 0:00:14]}  Ne3+ {[%clk 0:00:05]} 39. Kf3 {[%clk 0:00:14]}  Rf1+ {[%clk 0:00:05]} 40. Nf2 {[%clk 0:00:14]}  Nd1 {[%clk 0:00:05]} 41. Bf5+ {[%clk 0:00:12]}  Kb7 {[%clk 0:00:05]} 42. Bc2 {[%clk 0:00:11]}  Rxf2+ {[%clk 0:00:05]} 43. Rxf2 {[%clk 0:00:10]}  Nxf2 {[%clk 0:00:06]} 44. Bxh7 {[%clk 0:00:11]}  Nh3 {[%clk 0:00:06]} 45. Kg4 {[%clk 0:00:10]}  Nf2+ {[%clk 0:00:06]} 46. Kf3 {[%clk 0:00:11]}  Kc6 {[%clk 0:00:06]} 47. Bc2 {[%clk 0:00:10]}  Kd7 {[%clk 0:00:06]} 48. g4 {[%clk 0:00:10]}  Ke7 {[%clk 0:00:07]} 49. a3 {[%clk 0:00:10]}  a5 {[%clk 0:00:07]} 50. b3 {[%clk 0:00:10]}  Kf6 {[%clk 0:00:07]} 51. b4 {[%clk 0:00:11]}  axb4 {[%clk 0:00:07]} 52. axb4 {[%clk 0:00:11]}  Bd4 {[%clk 0:00:08]} 53. b5 {[%clk 0:00:11]}  Kg5 {[%clk 0:00:08]} 54. Bf5 {[%clk 0:00:11]}  Nd1 {[%clk 0:00:08]} 55. Ke4 {[%clk 0:00:11]}  Bf2 {[%clk 0:00:09]} 56. Kf3 {[%clk 0:00:11]}  Bc5 {[%clk 0:00:08]} 57. Ke4 {[%clk 0:00:11]}  Ne3 {[%clk 0:00:09]} 58. Bd7 {[%clk 0:00:10]}  Nxg4 {[%clk 0:00:09]} 59. Kd5 {[%clk 0:00:11]}  Bd6 {[%clk 0:00:09]} 60. Kc6 {[%clk 0:00:11]}  Nf6 {[%clk 0:00:09]} 61. Bh3 {[%clk 0:00:10]}  Kf4 {[%clk 0:00:09]} 62. Bf1 {[%clk 0:00:11]}  Ke5 {[%clk 0:00:10]} 63. Bg2 {[%clk 0:00:10]}  Kd4 {[%clk 0:00:10]} 64. Bf1 {[%clk 0:00:10]}  Ne4 {[%clk 0:00:11]} 65. Bg2 {[%clk 0:00:10]}  Nc3 {[%clk 0:00:12]} 66. Bf1 {[%clk 0:00:10]}  Ke3 {[%clk 0:00:12]} 67. Bg2 {[%clk 0:00:10]}  Kd3 {[%clk 0:00:12]} 68. Bf1+ {[%clk 0:00:10]}  Kd4 {[%clk 0:00:13]} 69. Bg2 {[%clk 0:00:10]}  Kc4 {[%clk 0:00:13]} 70. Bf1+ {[%clk 0:00:11]}  Kb4 {[%clk 0:00:13]} 71. Bd3 {[%clk 0:00:12]}  Na2 {[%clk 0:00:10]} 72. Bf1 {[%clk 0:00:11]}  Nc1 {[%clk 0:00:11]} 73. Kd5 {[%clk 0:00:11]}  Nb3 {[%clk 0:00:11]} 74. Kc6 {[%clk 0:00:11]}  Nd4+ {[%clk 0:00:11]} 75. Kb7 {[%clk 0:00:11]}  Nxb5 {[%clk 0:00:11]} 76. Kc6 {[%clk 0:00:11]}  Nc3 {[%clk 0:00:12]} 77. Bd3 {[%clk 0:00:10]}  Ka4 {[%clk 0:00:11]} 78. Bc2+ {[%clk 0:00:08]}  Ka5 {[%clk 0:00:11]} 79. Bd3 {[%clk 0:00:03]}  b5 {[%clk 0:00:11]} 80. Bc2 {[%clk 0:00:03]}  b4 {[%clk 0:00:11]} 81. Bb3 {[%clk 0:00:03]}  Na4 {[%clk 0:00:10]} 82. Kd5 {[%clk 0:00:03]}  Nc5 {[%clk 0:00:11]} 83. Bd1 {[%clk 0:00:02]}  b3 {[%clk 0:00:11]} 84. Kc4 {[%clk 0:00:02]}  b2 {[%clk 0:00:11]} 85. Bc2 {[%clk 0:00:03]}  Na6 {[%clk 0:00:09]} 86. Kb3 {[%clk 0:00:03]}  Be5 {[%clk 0:00:10]} 87. Be4 {[%clk 0:00:03]}  Nc5+ {[%clk 0:00:09]} 0-1


[Site "https://www.chess.com"]

[Event "Titled Tuesday Blitz August 3 2021"]
[White "Serikbay, Assel"]
[Black "Perez Gormaz, Matias"]
[WhiteFideId "13706799"]
[BlackFideId "3406342"]
[WhiteElo "2044"]
[BlackElo "2414"]
[Result "0-1"]
[Round "09"]
[TimeControl "180+1"]
[Date "2021.08.03"]
[WhiteClock "0:00:49"]
[BlackClock "0:00:47"]

1. e4 {[%clk 0:03:00]}  c5 {[%clk 0:02:59]} 2. Nf3 {[%clk 0:03:00]}  d6 {[%clk 0:03:00]} 3. d4 {[%clk 0:03:00]}  cxd4 {[%clk 0:03:01]} 4. Nxd4 {[%clk 0:03:00]}  Nf6 {[%clk 0:03:02]} 5. Nc3 {[%clk 0:03:00]}  a6 {[%clk 0:03:02]} 6. Bg5 {[%clk 0:02:54]}  e6 {[%clk 0:03:02]} 7. g4 {[%clk 0:02:48]}  Be7 {[%clk 0:02:56]} 8. h4 {[%clk 0:02:30]}  Qc7 {[%clk 0:02:38]} 9. Qd2 {[%clk 0:02:28]}  Nxg4 {[%clk 0:02:28]} 10. Bxe7 {[%clk 0:02:12]}  Qxe7 {[%clk 0:02:29]} 11. Rg1 {[%clk 0:02:11]}  Qxh4 {[%clk 0:02:26]} 12. Nf3 {[%clk 0:02:05]}  Qh5 {[%clk 0:00:59]} 13. Qxd6 {[%clk 0:02:03]}  Nd7 {[%clk 0:01:00]} 14. Qf4 {[%clk 0:01:42]}  Nge5 {[%clk 0:00:55]} 15. Nxe5 {[%clk 0:01:35]}  Qxe5 {[%clk 0:00:56]} 16. Qxe5 {[%clk 0:01:30]}  Nxe5 {[%clk 0:00:57]} 17. Rxg7 {[%clk 0:01:30]}  Ng6 {[%clk 0:00:56]} 18. O-O-O {[%clk 0:01:19]}  Kf8 {[%clk 0:00:56]} 19. Rxg6 {[%clk 0:01:17]}  hxg6 {[%clk 0:00:57]} 20. e5 {[%clk 0:01:15]}  Ke7 {[%clk 0:00:55]} 21. Ne4 {[%clk 0:01:13]}  Bd7 {[%clk 0:00:54]} 22. Nd6 {[%clk 0:00:50]}  Bc6 {[%clk 0:00:54]} 23. Bc4 {[%clk 0:00:49]}  Rh1 {[%clk 0:00:47]} 0-1


[Site "https://www.chess.com"]

[Event "Titled Tuesday Blitz August 3 2021"]
[White "Shahade, Gregory"]
[Black "Csonka, Balazs"]
[WhiteFideId "2009064"]
[BlackFideId "742910"]
[WhiteElo "2725"]
[BlackElo "2404"]
[Result "1-0"]
[Round "09"]
[TimeControl "180+1"]
[Date "2021.08.03"]
[WhiteClock "0:00:14"]
[BlackClock "0:00:01"]

1. e4 {[%clk 0:03:00]}  e5 {[%clk 0:03:00]} 2. Nf3 {[%clk 0:03:01]}  Nc6 {[%clk 0:03:01]} 3. Bb5 {[%clk 0:03:01]}  a6 {[%clk 0:03:01]} 4. Ba4 {[%clk 0:03:01]}  Bc5 {[%clk 0:03:01]} 5. O-O {[%clk 0:02:59]}  Nge7 {[%clk 0:03:01]} 6. c3 {[%clk 0:02:59]}  Ng6 {[%clk 0:03:01]} 7. d4 {[%clk 0:02:59]}  Ba7 {[%clk 0:03:01]} 8. Bxc6 {[%clk 0:02:50]}  dxc6 {[%clk 0:03:00]} 9. Nxe5 {[%clk 0:02:48]}  Nxe5 {[%clk 0:03:00]} 10. dxe5 {[%clk 0:02:48]}  Qh4 {[%clk 0:03:00]} 11. Qf3 {[%clk 0:02:40]}  Rg8 {[%clk 0:02:55]} 12. Be3 {[%clk 0:02:37]}  Bg4 {[%clk 0:02:54]} 13. Qf4 {[%clk 0:02:18]}  g5 {[%clk 0:02:54]} 14. Qf6 {[%clk 0:02:03]}  Bxe3 {[%clk 0:02:54]} 15. fxe3 {[%clk 0:01:57]}  Be6 {[%clk 0:02:54]} 16. Nd2 {[%clk 0:01:55]}  Rc8 {[%clk 0:02:54]} 17. g3 {[%clk 0:01:41]}  Qg4 {[%clk 0:01:45]} 18. Qf3 {[%clk 0:01:35]}  Qxf3 {[%clk 0:01:23]} 19. Nxf3 {[%clk 0:01:35]}  c5 {[%clk 0:01:19]} 20. b3 {[%clk 0:01:28]}  h6 {[%clk 0:01:10]} 21. Kf2 {[%clk 0:01:22]}  Ke7 {[%clk 0:01:00]} 22. h4 {[%clk 0:01:21]}  Bg4 {[%clk 0:00:56]} 23. Nh2 {[%clk 0:01:07]}  Be6 {[%clk 0:00:50]} 24. hxg5 {[%clk 0:00:52]}  Rxg5 {[%clk 0:00:41]} 25. Nf3 {[%clk 0:00:52]}  Rg4 {[%clk 0:00:41]} 26. Rh1 {[%clk 0:00:49]}  Rcg8 {[%clk 0:00:27]} 27. Rag1 {[%clk 0:00:42]}  R8g6 {[%clk 0:00:18]} 28. Rh4 {[%clk 0:00:39]}  Bd7 {[%clk 0:00:18]} 29. Rxg4 {[%clk 0:00:31]}  Bxg4 {[%clk 0:00:19]} 30. Nh4 {[%clk 0:00:30]}  Rg5 {[%clk 0:00:12]} 31. Rh1 {[%clk 0:00:25]}  Rxe5 {[%clk 0:00:10]} 32. Ng2 {[%clk 0:00:26]}  Rxe4 {[%clk 0:00:08]} 33. Rxh6 {[%clk 0:00:25]}  Re6 {[%clk 0:00:09]} 34. Rh4 {[%clk 0:00:24]}  f5 {[%clk 0:00:06]} 35. Nf4 {[%clk 0:00:25]}  Rd6 {[%clk 0:00:06]} 36. Rh7+ {[%clk 0:00:24]}  Kd8 {[%clk 0:00:06]} 37. c4 {[%clk 0:00:20]}  Rd2+ {[%clk 0:00:03]} 38. Kf1 {[%clk 0:00:20]}  Rxa2 {[%clk 0:00:04]} 39. Ne6+ {[%clk 0:00:17]}  Ke8 {[%clk 0:00:02]} 40. Nxc7+ {[%clk 0:00:17]}  Kf8 {[%clk 0:00:03]} 41. Ne6+ {[%clk 0:00:16]}  Kg8 {[%clk 0:00:03]} 42. Rxb7 {[%clk 0:00:16]}  Be2+ {[%clk 0:00:01]} 43. Ke1 {[%clk 0:00:16]}  Bf3 {[%clk 0:00:01]} 44. Rb8+ {[%clk 0:00:14]} 1-0


[Site "https://www.chess.com"]

[Event "Titled Tuesday Blitz August 3 2021"]
[White "Shailesh, Dravid"]
[Black "Zhao, Erick"]
[WhiteFideId "25017969"]
[BlackFideId "30946930"]
[WhiteElo "2228"]
[BlackElo "2517"]
[Result "0-1"]
[Round "09"]
[TimeControl "180+1"]
[Date "2021.08.03"]
[WhiteClock "0:01:55"]
[BlackClock "0:00:24"]

1. e4 {[%clk 0:03:00]}  c5 {[%clk 0:02:58]} 2. d4 {[%clk 0:02:59]}  cxd4 {[%clk 0:02:57]} 3. c3 {[%clk 0:02:59]}  d3 {[%clk 0:02:58]} 4. Bxd3 {[%clk 0:02:58]}  d6 {[%clk 0:02:59]} 5. Ne2 {[%clk 0:02:57]}  Nf6 {[%clk 0:02:59]} 6. c4 {[%clk 0:02:56]}  g6 {[%clk 0:02:59]} 7. Nbc3 {[%clk 0:02:57]}  Bg7 {[%clk 0:03:00]} 8. h3 {[%clk 0:02:54]}  O-O {[%clk 0:03:01]} 9. Be3 {[%clk 0:02:54]}  Nbd7 {[%clk 0:03:01]} 10. f4 {[%clk 0:02:52]}  a6 {[%clk 0:02:55]} 11. Qd2 {[%clk 0:02:52]}  b5 {[%clk 0:02:44]} 12. cxb5 {[%clk 0:02:51]}  axb5 {[%clk 0:02:44]} 13. Nxb5 {[%clk 0:02:51]}  Bb7 {[%clk 0:02:31]} 14. Nbc3 {[%clk 0:02:50]}  Nc5 {[%clk 0:02:15]} 15. Bxc5 {[%clk 0:02:49]}  dxc5 {[%clk 0:02:15]} 16. Qe3 {[%clk 0:02:49]}  Qb6 {[%clk 0:02:12]} 17. Bc4 {[%clk 0:02:40]}  Qb4 {[%clk 0:01:40]} 18. Bb3 {[%clk 0:02:17]}  Nxe4 {[%clk 0:01:23]} 19. O-O {[%clk 0:02:16]}  c4 {[%clk 0:01:06]} 20. Bc2 {[%clk 0:02:10]}  Nxc3 {[%clk 0:00:54]} 21. bxc3 {[%clk 0:02:09]}  Qd6 {[%clk 0:00:48]} 22. Rad1 {[%clk 0:02:07]}  Qc6 {[%clk 0:00:47]} 23. Rf2 {[%clk 0:02:08]}  Rxa2 {[%clk 0:00:45]} 24. Bb1 {[%clk 0:02:06]}  Rb2 {[%clk 0:00:45]} 25. f5 {[%clk 0:02:06]}  gxf5 {[%clk 0:00:42]} 26. Bxf5 {[%clk 0:02:04]}  Qb6 {[%clk 0:00:38]} 27. Qxe7 {[%clk 0:02:00]}  Bf6 {[%clk 0:00:31]} 28. Bxh7+ {[%clk 0:01:56]}  Kxh7 {[%clk 0:00:28]} 29. Qxf6 {[%clk 0:01:55]}  Qxf6 {[%clk 0:00:28]} 30. Rxf6 {[%clk 0:01:56]}  Rxe2 {[%clk 0:00:28]} 31. Rd4 {[%clk 0:01:56]}  Rxg2+ {[%clk 0:00:27]} 32. Kf1 {[%clk 0:01:57]}  Rg6 {[%clk 0:00:26]} 33. Rff4 {[%clk 0:01:55]}  Re8 {[%clk 0:00:24]} 34. Rxc4 {[%clk 0:01:55]}  Ba6 {[%clk 0:00:24]} 0-1


[Site "https://www.chess.com"]

[Event "Titled Tuesday Blitz August 3 2021"]
[White "Siddharth, Jagadeesh"]
[Black "Leitao, Rafael"]
[WhiteFideId "5818320"]
[BlackFideId "2101246"]
[WhiteElo "2567"]
[BlackElo "2692"]
[Result "0-1"]
[Round "09"]
[TimeControl "180+1"]
[Date "2021.08.03"]
[WhiteClock "0:01:19"]
[BlackClock "0:01:47"]

1. d4 {[%clk 0:03:00]}  Nf6 {[%clk 0:02:56]} 2. c4 {[%clk 0:03:00]}  g6 {[%clk 0:02:56]} 3. Nc3 {[%clk 0:03:00]}  Bg7 {[%clk 0:02:57]} 4. e4 {[%clk 0:02:59]}  d6 {[%clk 0:02:57]} 5. h3 {[%clk 0:03:00]}  O-O {[%clk 0:02:56]} 6. Be3 {[%clk 0:03:00]}  c6 {[%clk 0:02:52]} 7. g4 {[%clk 0:02:54]}  a6 {[%clk 0:02:52]} 8. a4 {[%clk 0:02:50]}  a5 {[%clk 0:02:47]} 9. Nf3 {[%clk 0:02:27]}  d5 {[%clk 0:02:37]} 10. cxd5 {[%clk 0:02:15]}  cxd5 {[%clk 0:02:38]} 11. e5 {[%clk 0:02:11]}  Ne4 {[%clk 0:02:38]} 12. Bd3 {[%clk 0:02:12]}  f5 {[%clk 0:02:23]} 13. exf6 {[%clk 0:02:05]}  Nxc3 {[%clk 0:01:54]} 14. fxg7 {[%clk 0:01:20]}  Nxd1 {[%clk 0:01:49]} 15. gxf8=Q+ {[%clk 0:01:19]}  Qxf8 {[%clk 0:01:47]} 0-1


[Site "https://www.chess.com"]

[Event "Titled Tuesday Blitz August 3 2021"]
[White "Silva, Miguel Antonio Neto"]
[Black "Spata, German"]
[WhiteFideId "1911929"]
[BlackFideId "113026"]
[WhiteElo "2283"]
[BlackElo "2238"]
[Result "0-1"]
[Round "09"]
[TimeControl "180+1"]
[Date "2021.08.03"]
[WhiteClock "0:00:57"]
[BlackClock "0:00:06"]

1. Nf3 {[%clk 0:03:00]}  Nf6 {[%clk 0:02:38]} 2. c4 {[%clk 0:02:58]}  g6 {[%clk 0:02:37]} 3. g3 {[%clk 0:02:58]}  Bg7 {[%clk 0:02:37]} 4. Bg2 {[%clk 0:02:58]}  O-O {[%clk 0:02:36]} 5. O-O {[%clk 0:02:58]}  d6 {[%clk 0:02:32]} 6. d4 {[%clk 0:02:58]}  c6 {[%clk 0:02:31]} 7. Nc3 {[%clk 0:02:57]}  Qa5 {[%clk 0:02:28]} 8. d5 {[%clk 0:02:52]}  cxd5 {[%clk 0:02:22]} 9. cxd5 {[%clk 0:02:51]}  Na6 {[%clk 0:02:16]} 10. a3 {[%clk 0:02:49]}  Bd7 {[%clk 0:02:11]} 11. Bg5 {[%clk 0:02:43]}  h6 {[%clk 0:02:08]} 12. Bd2 {[%clk 0:02:40]}  Rfc8 {[%clk 0:02:04]} 13. b4 {[%clk 0:02:10]}  Qd8 {[%clk 0:02:04]} 14. Rc1 {[%clk 0:02:09]}  Rc4 {[%clk 0:01:45]} 15. Qb3 {[%clk 0:02:03]}  Rac8 {[%clk 0:01:37]} 16. Na2 {[%clk 0:02:01]}  Rxc1 {[%clk 0:01:08]} 17. Rxc1 {[%clk 0:02:00]}  Ne4 {[%clk 0:01:00]} 18. Be3 {[%clk 0:01:55]}  Rxc1+ {[%clk 0:00:56]} 19. Nxc1 {[%clk 0:01:55]}  Qc7 {[%clk 0:00:42]} 20. Ne1 {[%clk 0:01:48]}  Nc3 {[%clk 0:00:33]} 21. Ned3 {[%clk 0:01:32]}  Ba4 {[%clk 0:00:30]} 22. Qb2 {[%clk 0:01:28]}  Nxd5 {[%clk 0:00:21]} 23. Qxg7+ {[%clk 0:01:24]}  Kxg7 {[%clk 0:00:20]} 24. Bxd5 {[%clk 0:01:25]}  Bc6 {[%clk 0:00:13]} 25. Bc4 {[%clk 0:01:20]}  Be4 {[%clk 0:00:11]} 26. Bb3 {[%clk 0:01:17]}  Bxd3 {[%clk 0:00:11]} 27. Nxd3 {[%clk 0:01:17]}  Qc3 {[%clk 0:00:09]} 28. Bd5 {[%clk 0:01:13]}  Qxa3 {[%clk 0:00:06]} 29. Bxb7 {[%clk 0:01:12]}  Nxb4 {[%clk 0:00:06]} 30. Nf4 {[%clk 0:01:03]}  Nc2 {[%clk 0:00:05]} 31. Bd2 {[%clk 0:01:00]}  Qb2 {[%clk 0:00:03]} 32. Nd3 {[%clk 0:00:58]}  Qxb7 {[%clk 0:00:02]} 33. Bc3+ {[%clk 0:00:58]}  e5 {[%clk 0:00:03]} 34. f4 {[%clk 0:00:58]}  Nd4 {[%clk 0:00:04]} 35. Kf2 {[%clk 0:00:57]}  Qe4 {[%clk 0:00:03]} 36. Bxd4 {[%clk 0:00:55]}  Qxd4+ {[%clk 0:00:04]} 37. Kf3 {[%clk 0:00:55]}  Qxd3+ {[%clk 0:00:04]} 38. exd3 {[%clk 0:00:55]}  exf4 {[%clk 0:00:05]} 39. gxf4 {[%clk 0:00:55]}  Kf6 {[%clk 0:00:06]} 40. Ke4 {[%clk 0:00:56]}  Ke6 {[%clk 0:00:07]} 41. Kd4 {[%clk 0:00:57]}  g5 {[%clk 0:00:06]} 0-1


[Site "https://www.chess.com"]